[Event "Titled Tuesday Blitz February 22 Late 2022"]
[White "Maksimovic, Bojan"]
[Black "Djokic, Mihailo"]
[WhiteFideId "14408120"]
[BlackFideId "976440"]
[WhiteElo "2450"]
[BlackElo "2008"]
[Result "1-0"]
[Round "10"]
[TimeControl "180+1"]
[Date "2022.02.22"]
[WhiteClock "0:00:04"]
[BlackClock "0:00:02"]

1. a3 {[%clk 0:03:00]}  e5 {[%clk 0:02:59]} 2. c4 {[%clk 0:02:59]}  Nc6 {[%clk 0:02:59]} 3. b4 {[%clk 0:02:59]}  f5 {[%clk 0:02:58]} 4. Bb2 {[%clk 0:03:00]}  d6 {[%clk 0:02:58]} 5. g3 {[%clk 0:02:56]}  Nf6 {[%clk 0:02:58]} 6. Bg2 {[%clk 0:02:56]}  g6 {[%clk 0:02:57]} 7. d3 {[%clk 0:02:56]}  Bg7 {[%clk 0:02:57]} 8. e3 {[%clk 0:02:56]}  O-O {[%clk 0:02:57]} 9. Ne2 {[%clk 0:02:57]}  Kh8 {[%clk 0:02:52]} 10. Nbc3 {[%clk 0:02:57]}  Be6 {[%clk 0:02:51]} 11. Nd5 {[%clk 0:02:54]}  Rb8 {[%clk 0:02:48]} 12. O-O {[%clk 0:02:51]}  Ne7 {[%clk 0:02:48]} 13. Nec3 {[%clk 0:02:43]}  c6 {[%clk 0:02:47]} 14. Nxf6 {[%clk 0:02:42]}  Bxf6 {[%clk 0:02:47]} 15. f4 {[%clk 0:02:40]}  exf4 {[%clk 0:02:45]} 16. exf4 {[%clk 0:02:17]}  d5 {[%clk 0:02:44]} 17. Qe2 {[%clk 0:02:12]}  Bg8 {[%clk 0:02:39]} 18. Rad1 {[%clk 0:02:02]}  Qd7 {[%clk 0:02:28]} 19. Na4 {[%clk 0:01:58]}  d4 {[%clk 0:02:20]} 20. Nc5 {[%clk 0:01:55]}  Qd6 {[%clk 0:02:16]} 21. Nb3 {[%clk 0:01:55]}  b6 {[%clk 0:02:13]} 22. Rfe1 {[%clk 0:01:37]}  c5 {[%clk 0:02:09]} 23. b5 {[%clk 0:01:34]}  h6 {[%clk 0:02:04]} 24. Nd2 {[%clk 0:01:33]}  g5 {[%clk 0:01:59]} 25. fxg5 {[%clk 0:01:21]}  hxg5 {[%clk 0:02:00]} 26. Qh5+ {[%clk 0:01:18]}  Kg7 {[%clk 0:01:59]} 27. Qe2 {[%clk 0:01:02]}  Ng6 {[%clk 0:01:56]} 28. Qf2 {[%clk 0:00:57]}  Ne7 {[%clk 0:01:41]} 29. Nf3 {[%clk 0:00:54]}  Rbe8 {[%clk 0:01:35]} 30. Bc1 {[%clk 0:00:51]}  g4 {[%clk 0:01:20]} 31. Bf4 {[%clk 0:00:51]}  Qd8 {[%clk 0:01:18]} 32. Ne5 {[%clk 0:00:48]}  Ng6 {[%clk 0:01:13]} 33. Nxg6 {[%clk 0:00:37]}  Kxg6 {[%clk 0:01:12]} 34. Bc6 {[%clk 0:00:36]}  Re6 {[%clk 0:01:02]} 35. Rxe6 {[%clk 0:00:33]}  Bxe6 {[%clk 0:01:02]} 36. Re1 {[%clk 0:00:33]}  Bf7 {[%clk 0:01:00]} 37. Qe2 {[%clk 0:00:25]}  Bg5 {[%clk 0:00:54]} 38. Qe5 {[%clk 0:00:20]}  Bf6 {[%clk 0:00:50]} 39. Qe2 {[%clk 0:00:04]}  Rh8 {[%clk 0:00:47]} 40. Qd2 {[%clk 0:00:02]}  Be8 {[%clk 0:00:44]} 41. Bd5 {[%clk 0:00:02]}  Bd7 {[%clk 0:00:43]} 42. Qg2 {[%clk 0:00:02]}  Re8 {[%clk 0:00:42]} 43. Qf2 {[%clk 0:00:03]}  Re7 {[%clk 0:00:38]} 44. Re2 {[%clk 0:00:02]}  Qe8 {[%clk 0:00:38]} 45. Kf1 {[%clk 0:00:03]}  Be6 {[%clk 0:00:28]} 46. Qe1 {[%clk 0:00:02]}  Bxd5 {[%clk 0:00:27]} 47. Rxe7 {[%clk 0:00:03]}  Qxe7 {[%clk 0:00:13]} 48. Qxe7 {[%clk 0:00:03]}  Bxe7 {[%clk 0:00:11]} 49. cxd5 {[%clk 0:00:04]}  c4 {[%clk 0:00:04]} 50. dxc4 {[%clk 0:00:04]}  Bxa3 {[%clk 0:00:04]} 51. Ke2 {[%clk 0:00:04]}  Kf6 {[%clk 0:00:04]} 52. Kd3 {[%clk 0:00:04]}  Bc5 {[%clk 0:00:04]} 53. Bb8 {[%clk 0:00:05]}  Kg5 {[%clk 0:00:01]} 54. Bxa7 {[%clk 0:00:03]}  Kf6 {[%clk 0:00:01]} 55. Bb8 {[%clk 0:00:03]}  Kg5 {[%clk 0:00:01]} 56. Bf4+ {[%clk 0:00:04]}  Kf6 {[%clk 0:00:02]} 57. Bc1 {[%clk 0:00:04]}  Ke5 {[%clk 0:00:02]} 58. Bh6 {[%clk 0:00:02]}  Kf6 {[%clk 0:00:01]} 59. Bf4 {[%clk 0:00:02]}  Kf7 {[%clk 0:00:01]} 60. Be5 {[%clk 0:00:03]}  f4 {[%clk 0:00:01]} 61. Bxf4 {[%clk 0:00:03]}  Kg6 {[%clk 0:00:02]} 62. Be5 {[%clk 0:00:03]}  Bd6 {[%clk 0:00:02]} 63. Bxd6 {[%clk 0:00:03]}  Kf5 {[%clk 0:00:02]} 64. Kxd4 {[%clk 0:00:04]} 1-0


[Site "https://www.chess.com"]

[Event "Titled Tuesday Blitz February 22 Late 2022"]
[White "Migot, Tangi"]
[Black "Wu, Christopher"]
[WhiteFideId "662445"]
[BlackFideId "2040875"]
[WhiteElo "2506"]
[BlackElo "2631"]
[Result "0-1"]
[Round "10"]
[TimeControl "180+1"]
[Date "2022.02.23"]
[WhiteClock "0:00:17"]
[BlackClock "0:00:16"]

1. Nf3 {[%clk 0:03:00]}  c5 {[%clk 0:02:59]} 2. c3 {[%clk 0:03:01]}  d5 {[%clk 0:02:58]} 3. g3 {[%clk 0:03:01]}  Nf6 {[%clk 0:02:58]} 4. Bg2 {[%clk 0:03:02]}  Nc6 {[%clk 0:02:57]} 5. d4 {[%clk 0:03:00]}  Bf5 {[%clk 0:02:48]} 6. dxc5 {[%clk 0:02:57]}  a5 {[%clk 0:02:37]} 7. Nd4 {[%clk 0:02:42]}  Be4 {[%clk 0:02:35]} 8. O-O {[%clk 0:02:16]}  e5 {[%clk 0:02:28]} 9. Nxc6 {[%clk 0:02:13]}  bxc6 {[%clk 0:02:29]} 10. b4 {[%clk 0:02:12]}  Be7 {[%clk 0:02:22]} 11. a3 {[%clk 0:02:06]}  Qd7 {[%clk 0:02:17]} 12. Bg5 {[%clk 0:02:03]}  Bxg2 {[%clk 0:02:02]} 13. Kxg2 {[%clk 0:02:04]}  h5 {[%clk 0:01:52]} 14. h4 {[%clk 0:01:58]}  Ne4 {[%clk 0:01:42]} 15. Bxe7 {[%clk 0:01:56]}  Qxe7 {[%clk 0:01:43]} 16. f3 {[%clk 0:01:56]}  Nf6 {[%clk 0:01:38]} 17. Nd2 {[%clk 0:01:54]}  Rg8 {[%clk 0:01:30]} 18. e4 {[%clk 0:01:53]}  g5 {[%clk 0:01:25]} 19. hxg5 {[%clk 0:01:37]}  Rxg5 {[%clk 0:01:25]} 20. Rh1 {[%clk 0:01:31]}  O-O-O {[%clk 0:01:07]} 21. Qe2 {[%clk 0:01:29]}  dxe4 {[%clk 0:00:36]} 22. Nxe4 {[%clk 0:01:24]}  Nxe4 {[%clk 0:00:34]} 23. fxe4 {[%clk 0:01:16]}  Rdg8 {[%clk 0:00:34]} 24. Qa6+ {[%clk 0:00:54]}  Qb7 {[%clk 0:00:32]} 25. Qxb7+ {[%clk 0:00:54]}  Kxb7 {[%clk 0:00:33]} 26. Rh3 {[%clk 0:00:52]}  h4 {[%clk 0:00:33]} 27. Rxh4 {[%clk 0:00:37]}  Rxg3+ {[%clk 0:00:33]} 28. Kh1 {[%clk 0:00:37]}  Rxc3 {[%clk 0:00:30]} 29. Rh7 {[%clk 0:00:38]}  Rf3 {[%clk 0:00:26]} 30. Rh6 {[%clk 0:00:27]}  Rg4 {[%clk 0:00:21]} 31. Re1 {[%clk 0:00:21]}  Rxa3 {[%clk 0:00:18]} 32. bxa5 {[%clk 0:00:21]}  Rxa5 {[%clk 0:00:18]} 33. Rf6 {[%clk 0:00:18]}  Rxc5 {[%clk 0:00:17]} 34. Rxf7+ {[%clk 0:00:18]}  Kb6 {[%clk 0:00:17]} 35. Rb1+ {[%clk 0:00:17]}  Rb5 {[%clk 0:00:18]} 36. Re1 {[%clk 0:00:17]}  Rb4 {[%clk 0:00:18]} 37. Re7 {[%clk 0:00:16]}  Rbxe4 {[%clk 0:00:15]} 38. Rxe5 {[%clk 0:00:16]}  Rxe5 {[%clk 0:00:16]} 39. Rxe5 {[%clk 0:00:17]}  c5 {[%clk 0:00:16]} 40. Kh2 {[%clk 0:00:17]}  Kb5 {[%clk 0:00:16]} 41. Kh3 {[%clk 0:00:17]}  Rg8 {[%clk 0:00:16]} 0-1


[Site "https://www.chess.com"]

[Event "Titled Tuesday Blitz February 22 Late 2022"]
[White "Mikheev, Stanislav"]
[Black "Gomez Ledo, Roberto Carlos"]
[WhiteFideId "4135920"]
[BlackFideId "3507076"]
[WhiteElo "2249"]
[BlackElo "2379"]
[Result "1-0"]
[Round "10"]
[TimeControl "180+1"]
[Date "2022.02.22"]
[WhiteClock "0:00:14"]
[BlackClock "0:00:05"]

1. d4 {[%clk 0:03:00]}  Nf6 {[%clk 0:02:59]} 2. c4 {[%clk 0:03:01]}  e6 {[%clk 0:02:59]} 3. Nf3 {[%clk 0:03:01]}  d5 {[%clk 0:02:59]} 4. g3 {[%clk 0:03:02]}  Be7 {[%clk 0:02:58]} 5. Bg2 {[%clk 0:03:02]}  O-O {[%clk 0:02:59]} 6. O-O {[%clk 0:03:03]}  dxc4 {[%clk 0:02:59]} 7. Qc2 {[%clk 0:03:03]}  a6 {[%clk 0:02:58]} 8. a4 {[%clk 0:03:02]}  Bd7 {[%clk 0:02:57]} 9. Qxc4 {[%clk 0:03:02]}  Bc6 {[%clk 0:02:55]} 10. Bg5 {[%clk 0:03:02]}  Bd5 {[%clk 0:02:54]} 11. Qc1 {[%clk 0:02:52]}  h6 {[%clk 0:02:46]} 12. Bxf6 {[%clk 0:02:51]}  Bxf6 {[%clk 0:02:47]} 13. Nc3 {[%clk 0:02:48]}  Bxf3 {[%clk 0:02:45]} 14. Bxf3 {[%clk 0:02:48]}  c6 {[%clk 0:02:44]} 15. e3 {[%clk 0:02:44]}  a5 {[%clk 0:02:43]} 16. Ne4 {[%clk 0:02:43]}  Na6 {[%clk 0:02:40]} 17. Rd1 {[%clk 0:02:37]}  Be7 {[%clk 0:02:34]} 18. Qc4 {[%clk 0:02:28]}  Qb6 {[%clk 0:01:58]} 19. b3 {[%clk 0:02:18]}  Rfd8 {[%clk 0:01:55]} 20. Rac1 {[%clk 0:02:17]}  Qb4 {[%clk 0:01:51]} 21. Be2 {[%clk 0:02:04]}  Qxc4 {[%clk 0:01:50]} 22. bxc4 {[%clk 0:02:01]}  Nb4 {[%clk 0:01:43]} 23. h4 {[%clk 0:01:47]}  f5 {[%clk 0:01:38]} 24. Nd2 {[%clk 0:01:44]}  g5 {[%clk 0:01:36]} 25. hxg5 {[%clk 0:01:43]}  hxg5 {[%clk 0:01:37]} 26. Kg2 {[%clk 0:01:42]}  g4 {[%clk 0:01:37]} 27. c5 {[%clk 0:01:38]}  Kg7 {[%clk 0:01:32]} 28. Nc4 {[%clk 0:01:36]}  Nd5 {[%clk 0:01:15]} 29. Rh1 {[%clk 0:01:29]}  Rh8 {[%clk 0:01:09]} 30. Rb1 {[%clk 0:01:23]}  Rxh1 {[%clk 0:01:07]} 31. Rxh1 {[%clk 0:01:20]}  Ra7 {[%clk 0:00:56]} 32. Bd3 {[%clk 0:01:13]}  Bd8 {[%clk 0:00:50]} 33. Rb1 {[%clk 0:01:02]}  Nc3 {[%clk 0:00:40]} 34. Ra1 {[%clk 0:00:56]}  Nd5 {[%clk 0:00:39]} 35. Ne5 {[%clk 0:00:50]}  Bf6 {[%clk 0:00:30]} 36. Nd7 {[%clk 0:00:48]}  Bg5 {[%clk 0:00:25]} 37. Ra3 {[%clk 0:00:44]}  Nb4 {[%clk 0:00:24]} 38. Bb1 {[%clk 0:00:42]}  b5 {[%clk 0:00:19]} 39. Ne5 {[%clk 0:00:32]}  Bf6 {[%clk 0:00:18]} 40. f3 {[%clk 0:00:22]}  Bxe5 {[%clk 0:00:17]} 41. dxe5 {[%clk 0:00:23]}  gxf3+ {[%clk 0:00:17]} 42. Kxf3 {[%clk 0:00:24]}  Nd5 {[%clk 0:00:16]} 43. e4 {[%clk 0:00:24]}  b4 {[%clk 0:00:14]} 44. Ra1 {[%clk 0:00:21]}  fxe4+ {[%clk 0:00:14]} 45. Bxe4 {[%clk 0:00:19]}  Rf7+ {[%clk 0:00:15]} 46. Kg4 {[%clk 0:00:18]}  Rf2 {[%clk 0:00:09]} 47. Bxd5 {[%clk 0:00:18]}  exd5 {[%clk 0:00:08]} 48. Re1 {[%clk 0:00:16]}  Kf7 {[%clk 0:00:08]} 49. e6+ {[%clk 0:00:15]}  Ke7 {[%clk 0:00:08]} 50. Re3 {[%clk 0:00:13]}  d4 {[%clk 0:00:07]} 51. Rd3 {[%clk 0:00:13]}  Kxe6 {[%clk 0:00:05]} 52. Rxd4 {[%clk 0:00:13]}  b3 {[%clk 0:00:05]} 53. Rd6+ {[%clk 0:00:13]}  Ke5 {[%clk 0:00:05]} 54. Rxc6 {[%clk 0:00:14]}  Kd5 {[%clk 0:00:05]} 55. Rb6 {[%clk 0:00:14]}  b2 {[%clk 0:00:05]} 56. Rb5 {[%clk 0:00:14]} 1-0


[Site "https://www.chess.com"]

[Event "Titled Tuesday Blitz February 22 Late 2022"]
[White "Mirzoev, Azer"]
[Black "Erdogdu, Mert"]
[WhiteFideId "13400304"]
[BlackFideId "6301495"]
[WhiteElo "2525"]
[BlackElo "2485"]
[Result "1/2-1/2"]
[Round "10"]
[TimeControl "180+1"]
[Date "2022.02.22"]
[WhiteClock "0:00:09"]
[BlackClock "0:00:11"]

1. Nf3 {[%clk 0:03:00]}  d5 {[%clk 0:02:59]} 2. c4 {[%clk 0:03:00]}  e6 {[%clk 0:03:00]} 3. e3 {[%clk 0:03:00]}  c5 {[%clk 0:03:00]} 4. d4 {[%clk 0:02:59]}  Nf6 {[%clk 0:03:00]} 5. Nc3 {[%clk 0:02:59]}  a6 {[%clk 0:03:00]} 6. cxd5 {[%clk 0:02:55]}  exd5 {[%clk 0:02:59]} 7. dxc5 {[%clk 0:02:32]}  Bxc5 {[%clk 0:03:00]} 8. Be2 {[%clk 0:02:32]}  Nc6 {[%clk 0:03:00]} 9. O-O {[%clk 0:02:32]}  O-O {[%clk 0:03:00]} 10. b3 {[%clk 0:02:30]}  d4 {[%clk 0:02:56]} 11. Na4 {[%clk 0:02:27]}  Ba7 {[%clk 0:02:56]} 12. exd4 {[%clk 0:02:27]}  Nxd4 {[%clk 0:02:56]} 13. Nxd4 {[%clk 0:02:25]}  Bxd4 {[%clk 0:02:56]} 14. Bb2 {[%clk 0:02:25]}  Bxb2 {[%clk 0:02:54]} 15. Nxb2 {[%clk 0:02:26]}  Re8 {[%clk 0:02:52]} 16. Bf3 {[%clk 0:02:25]}  Qe7 {[%clk 0:02:42]} 17. Re1 {[%clk 0:02:17]}  Be6 {[%clk 0:02:40]} 18. Nc4 {[%clk 0:02:02]}  Rad8 {[%clk 0:02:36]} 19. Qc1 {[%clk 0:02:00]}  Qb4 {[%clk 0:02:27]} 20. h3 {[%clk 0:01:31]}  Bd5 {[%clk 0:02:00]} 21. Rxe8+ {[%clk 0:01:28]}  Rxe8 {[%clk 0:01:58]} 22. Qd1 {[%clk 0:01:12]}  Bxf3 {[%clk 0:01:48]} 23. Qxf3 {[%clk 0:01:12]}  b5 {[%clk 0:01:45]} 24. Ne3 {[%clk 0:01:10]}  Qd2 {[%clk 0:01:35]} 25. Qc6 {[%clk 0:01:04]}  Qb2 {[%clk 0:01:12]} 26. Qc1 {[%clk 0:00:58]}  Qe5 {[%clk 0:00:57]} 27. a4 {[%clk 0:00:57]}  Ne4 {[%clk 0:00:53]} 28. axb5 {[%clk 0:00:52]}  axb5 {[%clk 0:00:54]} 29. Ra2 {[%clk 0:00:33]}  h5 {[%clk 0:00:42]} 30. Rc2 {[%clk 0:00:30]}  g6 {[%clk 0:00:29]} 31. Nf1 {[%clk 0:00:24]}  b4 {[%clk 0:00:25]} 32. Re2 {[%clk 0:00:20]}  Qd4 {[%clk 0:00:22]} 33. Qe3 {[%clk 0:00:19]}  Qxe3 {[%clk 0:00:12]} 34. Rxe3 {[%clk 0:00:19]}  Re6 {[%clk 0:00:13]} 35. Rd3 {[%clk 0:00:10]}  Nc5 {[%clk 0:00:12]} 36. Rd4 {[%clk 0:00:10]}  Nxb3 {[%clk 0:00:09]} 37. Rxb4 {[%clk 0:00:09]}  Nc5 {[%clk 0:00:10]} 38. Rb1 {[%clk 0:00:09]}  Ne4 {[%clk 0:00:09]} 39. Re1 {[%clk 0:00:08]}  Ng5 {[%clk 0:00:10]} 40. Rxe6 {[%clk 0:00:08]}  Nxe6 {[%clk 0:00:11]} 41. Ne3 {[%clk 0:00:09]}  Kg7 {[%clk 0:00:10]} 42. Nf1 {[%clk 0:00:09]}  Kg8 {[%clk 0:00:10]} 43. Ne3 {[%clk 0:00:09]}  Kg7 {[%clk 0:00:11]} 44. Nf1 {[%clk 0:00:09]}  Kg8 {[%clk 0:00:11]} 1/2-1/2


[Site "https://www.chess.com"]

[Event "Titled Tuesday Blitz February 22 Late 2022"]
[White "Papp, Levente"]
[Black "Prohorov, Olexandr"]
[WhiteFideId "751243"]
[BlackFideId "14105578"]
[WhiteElo "2308"]
[BlackElo "1993"]
[Result "1-0"]
[Round "10"]
[TimeControl "180+1"]
[Date "2022.02.23"]
[WhiteClock "0:00:21"]
[BlackClock "0:00:04"]

1. c4 {[%clk 0:03:00]}  g6 {[%clk 0:02:59]} 2. g3 {[%clk 0:03:01]}  Bg7 {[%clk 0:02:59]} 3. Bg2 {[%clk 0:03:01]}  Nf6 {[%clk 0:02:57]} 4. Nc3 {[%clk 0:03:02]}  O-O {[%clk 0:02:56]} 5. e4 {[%clk 0:03:03]}  d6 {[%clk 0:02:54]} 6. Nge2 {[%clk 0:03:03]}  c5 {[%clk 0:02:55]} 7. O-O {[%clk 0:03:03]}  Nc6 {[%clk 0:02:55]} 8. d3 {[%clk 0:03:04]}  Ne8 {[%clk 0:02:55]} 9. Rb1 {[%clk 0:03:04]}  Nc7 {[%clk 0:02:55]} 10. a3 {[%clk 0:03:04]}  a5 {[%clk 0:02:55]} 11. Be3 {[%clk 0:03:02]}  Ne6 {[%clk 0:02:54]} 12. b3 {[%clk 0:02:53]}  Ned4 {[%clk 0:02:53]} 13. Qd2 {[%clk 0:02:53]}  Bg4 {[%clk 0:02:52]} 14. f3 {[%clk 0:02:53]}  Bd7 {[%clk 0:02:51]} 15. Bh6 {[%clk 0:02:51]}  Rb8 {[%clk 0:02:49]} 16. Bxg7 {[%clk 0:02:50]}  Kxg7 {[%clk 0:02:50]} 17. Nxd4 {[%clk 0:02:49]}  Nxd4 {[%clk 0:02:48]} 18. b4 {[%clk 0:02:44]}  axb4 {[%clk 0:02:47]} 19. axb4 {[%clk 0:02:45]}  cxb4 {[%clk 0:02:45]} 20. Rxb4 {[%clk 0:02:45]}  Qa5 {[%clk 0:02:39]} 21. Qb2 {[%clk 0:02:44]}  e5 {[%clk 0:02:28]} 22. Ra1 {[%clk 0:02:41]}  Qc7 {[%clk 0:02:24]} 23. Nd5 {[%clk 0:02:40]}  Qc5 {[%clk 0:02:25]} 24. Kh1 {[%clk 0:02:34]}  b5 {[%clk 0:02:20]} 25. Rc1 {[%clk 0:02:04]}  Rbc8 {[%clk 0:02:04]} 26. h4 {[%clk 0:01:54]}  h5 {[%clk 0:02:03]} 27. f4 {[%clk 0:01:51]}  bxc4 {[%clk 0:01:56]} 28. Rbxc4 {[%clk 0:01:50]}  Qa5 {[%clk 0:01:49]} 29. fxe5 {[%clk 0:01:39]}  dxe5 {[%clk 0:01:48]} 30. Qf2 {[%clk 0:01:16]}  Qa6 {[%clk 0:01:39]} 31. Kh2 {[%clk 0:01:03]}  Rxc4 {[%clk 0:01:36]} 32. dxc4 {[%clk 0:00:57]}  Bc8 {[%clk 0:01:20]} 33. c5 {[%clk 0:00:54]}  f5 {[%clk 0:01:14]} 34. exf5 {[%clk 0:00:51]}  Rxf5 {[%clk 0:01:09]} 35. Qe3 {[%clk 0:00:43]}  Qe2 {[%clk 0:00:36]} 36. Qxe2 {[%clk 0:00:39]}  Nxe2 {[%clk 0:00:36]} 37. Re1 {[%clk 0:00:40]}  Nd4 {[%clk 0:00:32]} 38. Ne7 {[%clk 0:00:39]}  Rf8 {[%clk 0:00:31]} 39. Rxe5 {[%clk 0:00:35]}  Bg4 {[%clk 0:00:31]} 40. c6 {[%clk 0:00:30]}  Kf6 {[%clk 0:00:20]} 41. Re4 {[%clk 0:00:22]}  Ne6 {[%clk 0:00:18]} 42. Nd5+ {[%clk 0:00:21]}  Kg7 {[%clk 0:00:17]} 43. c7 {[%clk 0:00:20]}  Rc8 {[%clk 0:00:15]} 44. Rc4 {[%clk 0:00:20]}  Kf7 {[%clk 0:00:11]} 45. Bh3 {[%clk 0:00:18]}  Bxh3 {[%clk 0:00:09]} 46. Kxh3 {[%clk 0:00:19]}  Ke8 {[%clk 0:00:07]} 47. g4 {[%clk 0:00:19]}  hxg4+ {[%clk 0:00:07]} 48. Kxg4 {[%clk 0:00:20]}  Kd7 {[%clk 0:00:07]} 49. Nb6+ {[%clk 0:00:20]}  Kd6 {[%clk 0:00:04]} 50. Nxc8+ {[%clk 0:00:21]} 1-0


[Site "https://www.chess.com"]

[Event "Titled Tuesday Blitz February 22 Late 2022"]
[White "Perez Gormaz, Matias"]
[Black "Pakleza, Zbigniew"]
[WhiteFideId "3406342"]
[BlackFideId "1119290"]
[WhiteElo "2352"]
[BlackElo "2467"]
[Result "1-0"]
[Round "10"]
[TimeControl "180+1"]
[Date "2022.02.22"]
[WhiteClock "0:00:15"]
[BlackClock "0:00:07"]

1. e4 {[%clk 0:03:00]}  d6 {[%clk 0:02:59]} 2. d4 {[%clk 0:03:00]}  Nf6 {[%clk 0:02:59]} 3. Nc3 {[%clk 0:03:01]}  c6 {[%clk 0:02:59]} 4. Nf3 {[%clk 0:02:58]}  Bg4 {[%clk 0:02:58]} 5. h3 {[%clk 0:02:55]}  Bh5 {[%clk 0:02:58]} 6. Bd3 {[%clk 0:02:52]}  e6 {[%clk 0:02:58]} 7. Bf4 {[%clk 0:02:47]}  d5 {[%clk 0:02:57]} 8. e5 {[%clk 0:02:38]}  Nfd7 {[%clk 0:02:56]} 9. g4 {[%clk 0:02:38]}  Bg6 {[%clk 0:02:56]} 10. Bxg6 {[%clk 0:02:34]}  hxg6 {[%clk 0:02:56]} 11. Ne2 {[%clk 0:02:35]}  c5 {[%clk 0:02:55]} 12. c3 {[%clk 0:02:35]}  Nc6 {[%clk 0:02:55]} 13. Kf1 {[%clk 0:02:35]}  Qb6 {[%clk 0:02:52]} 14. Kg2 {[%clk 0:02:30]}  Be7 {[%clk 0:02:48]} 15. h4 {[%clk 0:02:28]}  O-O-O {[%clk 0:02:44]} 16. Qd2 {[%clk 0:02:21]}  Kb8 {[%clk 0:02:42]} 17. b3 {[%clk 0:02:10]}  Ka8 {[%clk 0:02:37]} 18. Bg5 {[%clk 0:02:02]}  cxd4 {[%clk 0:02:21]} 19. Bxe7 {[%clk 0:01:58]}  Nxe7 {[%clk 0:02:22]} 20. cxd4 {[%clk 0:01:54]}  Nc6 {[%clk 0:01:59]} 21. Rac1 {[%clk 0:01:53]}  Rc8 {[%clk 0:01:58]} 22. Ng5 {[%clk 0:01:45]}  Rhf8 {[%clk 0:01:55]} 23. h5 {[%clk 0:01:37]}  gxh5 {[%clk 0:01:51]} 24. Rxh5 {[%clk 0:01:37]}  Ne7 {[%clk 0:01:07]} 25. Rxc8+ {[%clk 0:01:29]}  Nxc8 {[%clk 0:01:08]} 26. Nf4 {[%clk 0:01:20]}  Qd8 {[%clk 0:00:57]} 27. Nfxe6 {[%clk 0:01:16]}  fxe6 {[%clk 0:00:58]} 28. Nxe6 {[%clk 0:01:17]}  Qe7 {[%clk 0:00:44]} 29. Nxf8 {[%clk 0:01:14]}  Nxf8 {[%clk 0:00:45]} 30. Qf4 {[%clk 0:01:10]}  Ne6 {[%clk 0:00:39]} 31. Qf5 {[%clk 0:01:02]}  g6 {[%clk 0:00:25]} 32. Rh8 {[%clk 0:00:53]}  Kb8 {[%clk 0:00:16]} 33. Qf6 {[%clk 0:00:53]}  Qd7 {[%clk 0:00:12]} 34. f4 {[%clk 0:00:45]}  Nxd4 {[%clk 0:00:10]} 35. Qd6+ {[%clk 0:00:45]}  Qc7 {[%clk 0:00:08]} 36. Rg8 {[%clk 0:00:27]}  a6 {[%clk 0:00:02]} 37. Qxc7+ {[%clk 0:00:20]}  Kxc7 {[%clk 0:00:03]} 38. Rxg6 {[%clk 0:00:21]}  Ne7 {[%clk 0:00:01]} 39. f5 {[%clk 0:00:18]}  Kd7 {[%clk 0:00:02]} 40. Rb6 {[%clk 0:00:15]}  Kc7 {[%clk 0:00:02]} 41. Rh6 {[%clk 0:00:15]}  Nec6 {[%clk 0:00:02]} 42. e6 {[%clk 0:00:15]}  Kd6 {[%clk 0:00:03]} 43. Rh7 {[%clk 0:00:15]}  Ke5 {[%clk 0:00:01]} 44. Kg3 {[%clk 0:00:16]}  Kd6 {[%clk 0:00:02]} 45. Rxb7 {[%clk 0:00:16]}  Ne7 {[%clk 0:00:02]} 46. Rd7+ {[%clk 0:00:16]}  Ke5 {[%clk 0:00:02]} 47. Rxe7 {[%clk 0:00:17]}  Ne2+ {[%clk 0:00:03]} 48. Kh4 {[%clk 0:00:17]}  Nf4 {[%clk 0:00:04]} 49. Ra7 {[%clk 0:00:17]}  d4 {[%clk 0:00:04]} 50. Rd7 {[%clk 0:00:15]}  d3 {[%clk 0:00:05]} 51. Rxd3 {[%clk 0:00:13]}  Nxd3 {[%clk 0:00:05]} 52. e7 {[%clk 0:00:14]}  Kf4 {[%clk 0:00:06]} 53. e8=Q {[%clk 0:00:15]}  Nf2 {[%clk 0:00:07]} 1-0


[Site "https://www.chess.com"]

[Event "Titled Tuesday Blitz February 22 Late 2022"]
[White "Peterson, Eric"]
[Black "Zhou, Qiyu"]
[WhiteFideId "14908395"]
[BlackFideId "505161"]
[WhiteElo "2195"]
[BlackElo "1925"]
[Result "1/2-1/2"]
[Round "10"]
[TimeControl "180+1"]
[Date "2022.02.23"]
[WhiteClock "0:00:16"]
[BlackClock "0:00:04"]

1. e4 {[%clk 0:03:00]}  e5 {[%clk 0:02:58]} 2. Nf3 {[%clk 0:02:58]}  Nc6 {[%clk 0:02:58]} 3. Bb5 {[%clk 0:02:57]}  a6 {[%clk 0:02:58]} 4. Ba4 {[%clk 0:02:57]}  Nf6 {[%clk 0:02:57]} 5. d4 {[%clk 0:02:55]}  b5 {[%clk 0:02:54]} 6. dxe5 {[%clk 0:02:54]}  bxa4 {[%clk 0:02:45]} 7. exf6 {[%clk 0:02:54]}  Qxf6 {[%clk 0:02:46]} 8. Nc3 {[%clk 0:02:54]}  a3 {[%clk 0:02:44]} 9. Nd5 {[%clk 0:02:36]}  Qd8 {[%clk 0:02:24]} 10. bxa3 {[%clk 0:02:35]}  Bc5 {[%clk 0:02:13]} 11. Bg5 {[%clk 0:02:19]}  f6 {[%clk 0:02:10]} 12. Bf4 {[%clk 0:02:19]}  d6 {[%clk 0:02:06]} 13. O-O {[%clk 0:02:16]}  Be6 {[%clk 0:01:58]} 14. c4 {[%clk 0:02:06]}  O-O {[%clk 0:01:52]} 15. Qa4 {[%clk 0:02:04]}  Ne5 {[%clk 0:01:46]} 16. Nxe5 {[%clk 0:01:38]}  fxe5 {[%clk 0:01:44]} 17. Be3 {[%clk 0:01:27]}  Bxe3 {[%clk 0:01:10]} 18. Nxe3 {[%clk 0:01:26]}  Qh4 {[%clk 0:01:07]} 19. f3 {[%clk 0:01:21]}  Qg5 {[%clk 0:01:03]} 20. Rae1 {[%clk 0:01:12]}  Rfb8 {[%clk 0:00:49]} 21. Rf2 {[%clk 0:01:04]}  Rb6 {[%clk 0:00:46]} 22. Nd5 {[%clk 0:00:55]}  Bxd5 {[%clk 0:00:36]} 23. cxd5 {[%clk 0:00:56]}  Rab8 {[%clk 0:00:34]} 24. Qd7 {[%clk 0:00:53]}  Rb1 {[%clk 0:00:20]} 25. Ref1 {[%clk 0:00:26]}  Qe3 {[%clk 0:00:12]} 26. g3 {[%clk 0:00:20]}  h5 {[%clk 0:00:08]} 27. Kg2 {[%clk 0:00:19]}  Rxf1 {[%clk 0:00:04]} 28. Rxf1 {[%clk 0:00:19]}  Rb2+ {[%clk 0:00:04]} 29. Kh3 {[%clk 0:00:19]}  Qe2 {[%clk 0:00:03]} 30. Qe6+ {[%clk 0:00:17]}  Kh8 {[%clk 0:00:02]} 31. Qe8+ {[%clk 0:00:16]}  Kh7 {[%clk 0:00:02]} 32. Qxh5+ {[%clk 0:00:17]}  Kg8 {[%clk 0:00:03]} 33. Qe8+ {[%clk 0:00:17]}  Kh7 {[%clk 0:00:03]} 34. Qh5+ {[%clk 0:00:18]}  Kg8 {[%clk 0:00:04]} 35. Qe8+ {[%clk 0:00:18]}  Kh7 {[%clk 0:00:04]} 36. Qh5+ {[%clk 0:00:16]} 1/2-1/2


[Site "https://www.chess.com"]